[Event "Titled Tuesday Blitz September 21 2021"]
[White "Costachi, Mihnea"]
[Black "Pasti, Aron"]
[WhiteFideId "1217518"]
[BlackFideId "785857"]
[WhiteElo "2482"]
[BlackElo "2080"]
[Result "0-1"]
[Round "04"]
[TimeControl "180+1"]
[Date "2021.09.21"]
[WhiteClock "0:01:03"]
[BlackClock "0:00:15"]

1. d4 {[%clk 0:03:00]}  d5 {[%clk 0:02:59]} 2. c4 {[%clk 0:03:01]}  e6 {[%clk 0:02:58]} 3. Nc3 {[%clk 0:03:00]}  Nf6 {[%clk 0:02:49]} 4. cxd5 {[%clk 0:03:00]}  exd5 {[%clk 0:02:50]} 5. Bg5 {[%clk 0:03:00]}  Be7 {[%clk 0:02:51]} 6. Qc2 {[%clk 0:03:01]}  O-O {[%clk 0:02:51]} 7. e3 {[%clk 0:03:01]}  Re8 {[%clk 0:02:51]} 8. Bd3 {[%clk 0:03:01]}  h6 {[%clk 0:02:51]} 9. Bh4 {[%clk 0:03:00]}  c5 {[%clk 0:02:51]} 10. dxc5 {[%clk 0:02:56]}  d4 {[%clk 0:02:37]} 11. Nce2 {[%clk 0:02:56]}  dxe3 {[%clk 0:02:35]} 12. Nf3 {[%clk 0:02:56]}  Nd5 {[%clk 0:02:26]} 13. Bxe7 {[%clk 0:02:55]}  exf2+ {[%clk 0:02:26]} 14. Kxf2 {[%clk 0:02:52]}  Qxe7 {[%clk 0:02:23]} 15. Qd2 {[%clk 0:02:45]}  Bg4 {[%clk 0:02:14]} 16. Rac1 {[%clk 0:02:25]}  Bxf3 {[%clk 0:01:58]} 17. gxf3 {[%clk 0:02:26]}  Nc6 {[%clk 0:01:56]} 18. Ng3 {[%clk 0:02:19]}  Qf6 {[%clk 0:01:47]} 19. Be4 {[%clk 0:02:14]}  Nf4 {[%clk 0:01:38]} 20. Nf5 {[%clk 0:02:15]}  Qg5 {[%clk 0:01:33]} 21. h4 {[%clk 0:01:53]}  Nh3+ {[%clk 0:00:44]} 22. Ke2 {[%clk 0:01:44]}  Qxf5 {[%clk 0:00:44]} 23. Kd1 {[%clk 0:01:44]}  Nf2+ {[%clk 0:00:28]} 24. Qxf2 {[%clk 0:01:36]}  Rxe4 {[%clk 0:00:28]} 25. Rc2 {[%clk 0:01:31]}  Rd4+ {[%clk 0:00:17]} 26. Kc1 {[%clk 0:01:31]}  Nb4 {[%clk 0:00:17]} 27. a3 {[%clk 0:01:05]}  Nd3+ {[%clk 0:00:14]} 28. Kb1 {[%clk 0:01:03]}  Nxf2 {[%clk 0:00:15]} 0-1


[Site "https://www.chess.com"]

[Event "Titled Tuesday Blitz September 21 2021"]
[White "Ekdyshman, Mikhail"]
[Black "Mirzoev, Azer"]
[WhiteFideId "4149416"]
[BlackFideId "13400304"]
[WhiteElo "2256"]
[BlackElo "2525"]
[Result "0-1"]
[Round "04"]
[TimeControl "180+1"]
[Date "2021.09.21"]
[WhiteClock "0:00:07"]
[BlackClock "0:00:54"]

1. e4 {[%clk 0:02:59]}  c6 {[%clk 0:02:59]} 2. d4 {[%clk 0:02:59]}  d5 {[%clk 0:03:00]} 3. exd5 {[%clk 0:03:00]}  cxd5 {[%clk 0:02:59]} 4. c4 {[%clk 0:03:01]}  Nf6 {[%clk 0:02:59]} 5. Nc3 {[%clk 0:03:02]}  e6 {[%clk 0:03:00]} 6. Nf3 {[%clk 0:03:02]}  Be7 {[%clk 0:03:00]} 7. Bd3 {[%clk 0:03:01]}  dxc4 {[%clk 0:03:00]} 8. Bxc4 {[%clk 0:03:02]}  O-O {[%clk 0:03:00]} 9. O-O {[%clk 0:03:03]}  Nc6 {[%clk 0:03:01]} 10. a3 {[%clk 0:03:03]}  b6 {[%clk 0:03:01]} 11. Qd3 {[%clk 0:03:03]}  Bb7 {[%clk 0:03:01]} 12. Re1 {[%clk 0:03:03]}  Na5 {[%clk 0:02:59]} 13. Ba2 {[%clk 0:03:03]}  Bxf3 {[%clk 0:02:59]} 14. gxf3 {[%clk 0:02:56]}  Rc8 {[%clk 0:02:59]} 15. Be3 {[%clk 0:02:51]}  Qd7 {[%clk 0:02:52]} 16. Kh1 {[%clk 0:02:50]}  Rfd8 {[%clk 0:02:51]} 17. Rg1 {[%clk 0:02:49]}  g6 {[%clk 0:02:48]} 18. Rg3 {[%clk 0:02:43]}  Nc6 {[%clk 0:02:47]} 19. Rd1 {[%clk 0:02:40]}  Bf8 {[%clk 0:02:41]} 20. Ne4 {[%clk 0:02:32]}  Be7 {[%clk 0:02:24]} 21. Ng5 {[%clk 0:02:25]}  Bf8 {[%clk 0:02:04]} 22. Rh3 {[%clk 0:02:13]}  Bg7 {[%clk 0:01:54]} 23. b4 {[%clk 0:01:46]}  Ne7 {[%clk 0:01:53]} 24. Ne4 {[%clk 0:01:34]}  Ned5 {[%clk 0:01:50]} 25. Rg1 {[%clk 0:01:18]}  e5 {[%clk 0:01:16]} 26. Rhg3 {[%clk 0:01:12]}  Nxe3 {[%clk 0:01:15]} 27. Nxf6+ {[%clk 0:01:08]}  Bxf6 {[%clk 0:01:15]} 28. Rxg6+ {[%clk 0:00:53]}  hxg6 {[%clk 0:01:14]} 29. Qxg6+ {[%clk 0:00:53]}  Kf8 {[%clk 0:01:14]} 30. Qg8+ {[%clk 0:00:51]}  Ke7 {[%clk 0:01:13]} 31. Qxf7+ {[%clk 0:00:51]}  Kd6 {[%clk 0:01:13]} 32. Qxf6+ {[%clk 0:00:50]}  Kc7 {[%clk 0:01:13]} 33. Qxe5+ {[%clk 0:00:25]}  Qd6 {[%clk 0:01:12]} 34. Rg7+ {[%clk 0:00:18]}  Kb8 {[%clk 0:01:10]} 35. Qxd6+ {[%clk 0:00:08]}  Rxd6 {[%clk 0:01:10]} 36. fxe3 {[%clk 0:00:09]}  Rc1+ {[%clk 0:01:02]} 37. Rg1 {[%clk 0:00:09]}  Rc3 {[%clk 0:01:02]} 38. Re1 {[%clk 0:00:08]}  Rxa3 {[%clk 0:01:02]} 39. Bc4 {[%clk 0:00:07]}  Rc6 {[%clk 0:01:01]} 40. Bf1 {[%clk 0:00:07]}  Rcc3 {[%clk 0:01:01]} 41. b5 {[%clk 0:00:07]}  Rxe3 {[%clk 0:01:01]} 42. Rxe3 {[%clk 0:00:07]}  Rxe3 {[%clk 0:01:01]} 43. Kg2 {[%clk 0:00:08]}  Kc7 {[%clk 0:01:01]} 44. Kf2 {[%clk 0:00:09]}  Ra3 {[%clk 0:01:00]} 45. h4 {[%clk 0:00:09]}  Kd6 {[%clk 0:01:00]} 46. h5 {[%clk 0:00:09]}  Ke7 {[%clk 0:00:59]} 47. Kg3 {[%clk 0:00:08]}  Ra1 {[%clk 0:00:59]} 48. Bd3 {[%clk 0:00:08]}  Kf6 {[%clk 0:00:58]} 49. h6 {[%clk 0:00:07]}  Rd1 {[%clk 0:00:57]} 50. h7 {[%clk 0:00:06]}  Kg7 {[%clk 0:00:57]} 51. Be4 {[%clk 0:00:06]}  Rxd4 {[%clk 0:00:58]} 52. Kf4 {[%clk 0:00:07]}  Rb4 {[%clk 0:00:57]} 53. Ke5 {[%clk 0:00:06]}  Rxb5+ {[%clk 0:00:57]} 54. Ke6 {[%clk 0:00:06]}  a5 {[%clk 0:00:57]} 55. f4 {[%clk 0:00:07]}  Rb4 {[%clk 0:00:57]} 56. Bd3 {[%clk 0:00:06]}  Rxf4 {[%clk 0:00:57]} 57. Kd6 {[%clk 0:00:07]}  a4 {[%clk 0:00:57]} 58. Kc6 {[%clk 0:00:07]}  Rb4 {[%clk 0:00:54]} 59. Bc2 {[%clk 0:00:07]}  a3 {[%clk 0:00:54]} 0-1


[Site "https://www.chess.com"]

[Event "Titled Tuesday Blitz September 21 2021"]
[White "Estrada Nieto, Julian"]
[Black "Kwon, Sehyun"]
[WhiteFideId "5101018"]
[BlackFideId "13203088"]
[WhiteElo "2270"]
[BlackElo "1778"]
[Result "1-0"]
[Round "04"]
[TimeControl "180+1"]
[Date "2021.09.21"]
[WhiteClock "0:00:45"]
[BlackClock "0:00:02"]

1. e4 {[%clk 0:03:00]}  g6 {[%clk 0:03:00]} 2. d4 {[%clk 0:03:00]}  Bg7 {[%clk 0:03:00]} 3. Nc3 {[%clk 0:03:00]}  d6 {[%clk 0:02:59]} 4. Nf3 {[%clk 0:03:01]}  a6 {[%clk 0:02:58]} 5. a4 {[%clk 0:03:00]}  b6 {[%clk 0:02:48]} 6. Bc4 {[%clk 0:02:56]}  Bb7 {[%clk 0:02:47]} 7. O-O {[%clk 0:02:57]}  e6 {[%clk 0:02:46]} 8. Re1 {[%clk 0:02:53]}  Ne7 {[%clk 0:02:41]} 9. Bf4 {[%clk 0:02:46]}  h6 {[%clk 0:02:16]} 10. h4 {[%clk 0:02:45]}  O-O {[%clk 0:01:49]} 11. Qd2 {[%clk 0:02:44]}  Kh7 {[%clk 0:01:50]} 12. Rad1 {[%clk 0:02:36]}  Nd7 {[%clk 0:01:38]} 13. Bd3 {[%clk 0:02:17]}  e5 {[%clk 0:01:38]} 14. dxe5 {[%clk 0:02:13]}  dxe5 {[%clk 0:01:38]} 15. Be3 {[%clk 0:02:04]}  Nc6 {[%clk 0:01:20]} 16. h5 {[%clk 0:02:03]}  Nf6 {[%clk 0:01:13]} 17. hxg6+ {[%clk 0:02:00]}  fxg6 {[%clk 0:01:14]} 18. Bc4 {[%clk 0:02:00]}  Qe8 {[%clk 0:00:57]} 19. Qe2 {[%clk 0:01:57]}  Nh5 {[%clk 0:00:47]} 20. Nd5 {[%clk 0:01:50]}  Qc8 {[%clk 0:00:38]} 21. Nh2 {[%clk 0:01:40]}  Nf4 {[%clk 0:00:35]} 22. Qg4 {[%clk 0:01:31]}  Qxg4 {[%clk 0:00:27]} 23. Nxg4 {[%clk 0:01:30]}  Rac8 {[%clk 0:00:24]} 24. c3 {[%clk 0:01:27]}  Rfd8 {[%clk 0:00:18]} 25. Bxf4 {[%clk 0:01:18]}  exf4 {[%clk 0:00:18]} 26. e5 {[%clk 0:01:18]}  Re8 {[%clk 0:00:04]} 27. Ndf6+ {[%clk 0:01:17]}  Kh8 {[%clk 0:00:05]} 28. Nxe8 {[%clk 0:01:15]}  Rxe8 {[%clk 0:00:06]} 29. e6 {[%clk 0:01:10]}  h5 {[%clk 0:00:04]} 30. Nh2 {[%clk 0:01:06]}  Ne5 {[%clk 0:00:04]} 31. Bd5 {[%clk 0:01:01]}  Bxd5 {[%clk 0:00:03]} 32. Rxd5 {[%clk 0:01:01]}  Rxe6 {[%clk 0:00:03]} 33. Kf1 {[%clk 0:00:57]}  c6 {[%clk 0:00:04]} 34. Rd8+ {[%clk 0:00:56]}  Kh7 {[%clk 0:00:04]} 35. Nf3 {[%clk 0:00:55]}  Re7 {[%clk 0:00:02]} 36. Rc8 {[%clk 0:00:47]}  Kh6 {[%clk 0:00:01]} 37. Nxe5 {[%clk 0:00:46]}  Bxe5 {[%clk 0:00:02]} 38. Rxc6 {[%clk 0:00:46]}  b5 {[%clk 0:00:01]} 39. axb5 {[%clk 0:00:45]}  axb5 {[%clk 0:00:01]} 40. Rc5 {[%clk 0:00:45]}  Bf6 {[%clk 0:00:01]} 41. Rxe7 {[%clk 0:00:45]}  Bxe7 {[%clk 0:00:02]} 42. Rxb5 {[%clk 0:00:45]} 1-0


[Site "https://www.chess.com"]

[Event "Titled Tuesday Blitz September 21 2021"]
[White "Gallegos Diaz, Carlos Alberto"]
[Black "De Silva, L M S T"]
[WhiteFideId "3900886"]
[BlackFideId "9953698"]
[WhiteElo "2362"]
[BlackElo "1621"]
[Result "0-1"]
[Round "04"]
[TimeControl "180+1"]
[Date "2021.09.21"]
[WhiteClock "0:00:23"]
[BlackClock "0:01:53"]

1. e4 {[%clk 0:03:00]}  g6 {[%clk 0:03:00]} 2. d3 {[%clk 0:03:00]}  Bg7 {[%clk 0:03:00]} 3. Nd2 {[%clk 0:03:01]}  d6 {[%clk 0:03:00]} 4. Ngf3 {[%clk 0:03:01]}  Nd7 {[%clk 0:03:01]} 5. Be2 {[%clk 0:03:01]}  a6 {[%clk 0:03:01]} 6. O-O {[%clk 0:03:02]}  e5 {[%clk 0:03:01]} 7. Re1 {[%clk 0:03:03]}  Ne7 {[%clk 0:03:02]} 8. c3 {[%clk 0:03:03]}  h6 {[%clk 0:03:02]} 9. b4 {[%clk 0:03:04]}  g5 {[%clk 0:03:03]} 10. a3 {[%clk 0:03:04]}  Ng6 {[%clk 0:03:04]} 11. Nf1 {[%clk 0:02:40]}  g4 {[%clk 0:03:00]} 12. N3d2 {[%clk 0:02:39]}  h5 {[%clk 0:03:01]} 13. Ng3 {[%clk 0:02:34]}  Nf6 {[%clk 0:03:00]} 14. d4 {[%clk 0:02:28]}  Be6 {[%clk 0:02:43]} 15. Nf5 {[%clk 0:02:27]}  Bxf5 {[%clk 0:02:42]} 16. exf5 {[%clk 0:02:26]}  Ne7 {[%clk 0:02:41]} 17. Bd3 {[%clk 0:02:16]}  exd4 {[%clk 0:02:40]} 18. Ne4 {[%clk 0:01:45]}  Nxe4 {[%clk 0:02:35]} 19. Bxe4 {[%clk 0:01:41]}  dxc3 {[%clk 0:02:34]} 20. Bg5 {[%clk 0:01:33]}  f6 {[%clk 0:02:27]} 21. Bf4 {[%clk 0:01:07]}  O-O {[%clk 0:02:25]} 22. h3 {[%clk 0:01:04]}  d5 {[%clk 0:02:23]} 23. Bc2 {[%clk 0:01:03]}  d4 {[%clk 0:02:21]} 24. hxg4 {[%clk 0:01:00]}  h4 {[%clk 0:02:19]} 25. g5 {[%clk 0:00:53]}  Qd7 {[%clk 0:02:19]} 26. Bb3+ {[%clk 0:00:52]}  Nd5 {[%clk 0:02:18]} 27. Re7 {[%clk 0:00:49]}  Qxf5 {[%clk 0:02:14]} 28. Be5 {[%clk 0:00:31]}  c6 {[%clk 0:02:08]} 29. gxf6 {[%clk 0:00:23]}  Bxf6 {[%clk 0:02:07]} 30. Qxd4 {[%clk 0:00:23]}  Bxe7 {[%clk 0:01:53]} 0-1


[Site "https://www.chess.com"]

[Event "Titled Tuesday Blitz September 21 2021"]
[White "Grandelius, Nils"]
[Black "Gontcharov, Vladislav"]
[WhiteFideId "1710400"]
[BlackFideId "4123492"]
[WhiteElo "2651"]
[BlackElo "2503"]
[Result "0-1"]
[Round "04"]
[TimeControl "180+1"]
[Date "2021.09.21"]
[WhiteClock "0:00:17"]
[BlackClock "0:00:07"]

1. c4 {[%clk 0:03:00]}  Nf6 {[%clk 0:02:55]} 2. Nc3 {[%clk 0:02:59]}  g6 {[%clk 0:02:54]} 3. d4 {[%clk 0:02:56]}  Bg7 {[%clk 0:02:53]} 4. Bg5 {[%clk 0:02:56]}  c5 {[%clk 0:02:47]} 5. d5 {[%clk 0:02:56]}  d6 {[%clk 0:02:47]} 6. e3 {[%clk 0:02:55]}  O-O {[%clk 0:02:47]} 7. Nf3 {[%clk 0:02:54]}  e6 {[%clk 0:02:46]} 8. Be2 {[%clk 0:02:52]}  h6 {[%clk 0:02:41]} 9. Bh4 {[%clk 0:02:52]}  exd5 {[%clk 0:02:37]} 10. cxd5 {[%clk 0:02:50]}  g5 {[%clk 0:02:35]} 11. Bg3 {[%clk 0:02:50]}  Nh5 {[%clk 0:02:36]} 12. Nd2 {[%clk 0:02:43]}  Nxg3 {[%clk 0:02:35]} 13. hxg3 {[%clk 0:02:44]}  f5 {[%clk 0:02:31]} 14. Qc2 {[%clk 0:02:36]}  Nd7 {[%clk 0:02:23]} 15. O-O-O {[%clk 0:02:23]}  a6 {[%clk 0:02:21]} 16. g4 {[%clk 0:02:19]}  Ne5 {[%clk 0:02:14]} 17. gxf5 {[%clk 0:01:59]}  Bxf5 {[%clk 0:02:13]} 18. Nce4 {[%clk 0:02:00]}  Bh7 {[%clk 0:01:51]} 19. Rdf1 {[%clk 0:01:54]}  c4 {[%clk 0:01:21]} 20. Kb1 {[%clk 0:01:31]}  Qb6 {[%clk 0:01:11]} 21. f4 {[%clk 0:01:25]}  Qxe3 {[%clk 0:01:03]} 22. fxe5 {[%clk 0:00:42]}  Qxe2 {[%clk 0:01:03]} 23. Re1 {[%clk 0:00:43]}  Qg4 {[%clk 0:00:33]} 24. e6 {[%clk 0:00:38]}  b5 {[%clk 0:00:33]} 25. Ka1 {[%clk 0:00:34]}  Rf5 {[%clk 0:00:18]} 26. e7 {[%clk 0:00:31]}  Re5 {[%clk 0:00:17]} 27. Rxh6 {[%clk 0:00:29]}  Bxe4 {[%clk 0:00:14]} 28. Nxe4 {[%clk 0:00:29]}  Rxe7 {[%clk 0:00:13]} 29. Re6 {[%clk 0:00:22]}  Rxe6 {[%clk 0:00:12]} 30. dxe6 {[%clk 0:00:23]}  Qxe6 {[%clk 0:00:12]} 31. Re2 {[%clk 0:00:24]}  Re8 {[%clk 0:00:11]} 32. Nc3 {[%clk 0:00:21]}  Qf7 {[%clk 0:00:10]} 33. Rf2 {[%clk 0:00:21]}  Re1+ {[%clk 0:00:08]} 34. Nb1 {[%clk 0:00:22]}  Qe6 {[%clk 0:00:07]} 35. Qd2 {[%clk 0:00:20]}  Qe5 {[%clk 0:00:07]} 36. g4 {[%clk 0:00:16]}  c3 {[%clk 0:00:07]} 37. bxc3 {[%clk 0:00:15]}  Qxc3+ {[%clk 0:00:07]} 38. Qxc3 {[%clk 0:00:16]}  Bxc3+ {[%clk 0:00:07]} 39. Rb2 {[%clk 0:00:17]}  Bxb2+ {[%clk 0:00:07]} 0-1


[Site "https://www.chess.com"]

[Event "Titled Tuesday Blitz September 21 2021"]
[White "Hamley, Ryan"]
[Black "Iskusnyh, Sergei"]
[WhiteFideId "30959497"]
[BlackFideId "4120027"]
[WhiteElo "2447"]
[BlackElo "2492"]
[Result "1/2-1/2"]
[Round "04"]
[TimeControl "180+1"]
[Date "2021.09.21"]
[WhiteClock "0:00:47"]
[BlackClock "0:00:15"]

1. e4 {[%clk 0:03:00]}  e6 {[%clk 0:02:59]} 2. d4 {[%clk 0:02:52]}  d5 {[%clk 0:02:59]} 3. Nd2 {[%clk 0:02:52]}  c5 {[%clk 0:02:58]} 4. exd5 {[%clk 0:02:49]}  exd5 {[%clk 0:02:59]} 5. Ngf3 {[%clk 0:02:50]}  Nc6 {[%clk 0:02:57]} 6. Bb5 {[%clk 0:02:50]}  cxd4 {[%clk 0:02:57]} 7. Nxd4 {[%clk 0:02:49]}  Bd7 {[%clk 0:02:53]} 8. Nxc6 {[%clk 0:02:48]}  bxc6 {[%clk 0:02:52]} 9. Bd3 {[%clk 0:02:49]}  Bd6 {[%clk 0:02:42]} 10. O-O {[%clk 0:02:48]}  Nf6 {[%clk 0:02:38]} 11. Re1+ {[%clk 0:02:48]}  Be6 {[%clk 0:02:38]} 12. Nf3 {[%clk 0:02:48]}  O-O {[%clk 0:02:33]} 13. h3 {[%clk 0:02:48]}  h6 {[%clk 0:02:30]} 14. c3 {[%clk 0:02:45]}  c5 {[%clk 0:02:26]} 15. Be3 {[%clk 0:02:35]}  Qc7 {[%clk 0:02:22]} 16. Qa4 {[%clk 0:02:32]}  Rab8 {[%clk 0:01:52]} 17. Rab1 {[%clk 0:02:28]}  Ne4 {[%clk 0:01:33]} 18. Bxe4 {[%clk 0:02:20]}  dxe4 {[%clk 0:01:32]} 19. Qxe4 {[%clk 0:02:21]}  Bxa2 {[%clk 0:01:30]} 20. Ra1 {[%clk 0:02:21]}  Rfe8 {[%clk 0:01:19]} 21. Qa4 {[%clk 0:02:17]}  Bd5 {[%clk 0:01:18]} 22. Qxa7 {[%clk 0:02:09]}  Bxf3 {[%clk 0:01:06]} 23. Qxc7 {[%clk 0:02:07]}  Bxc7 {[%clk 0:01:04]} 24. gxf3 {[%clk 0:02:08]}  c4 {[%clk 0:00:58]} 25. Ra4 {[%clk 0:02:06]}  Rec8 {[%clk 0:00:51]} 26. Re2 {[%clk 0:01:59]}  Bd6 {[%clk 0:00:47]} 27. Rd2 {[%clk 0:01:59]}  Be5 {[%clk 0:00:45]} 28. Kg2 {[%clk 0:01:56]}  Rc6 {[%clk 0:00:43]} 29. f4 {[%clk 0:01:47]}  Bf6 {[%clk 0:00:38]} 30. Kf3 {[%clk 0:01:47]}  Rb7 {[%clk 0:00:37]} 31. Ke4 {[%clk 0:01:36]}  Kh7 {[%clk 0:00:37]} 32. Kd5 {[%clk 0:01:33]}  Rc8 {[%clk 0:00:36]} 33. Ke4 {[%clk 0:01:27]}  Re8+ {[%clk 0:00:30]} 34. Kf3 {[%clk 0:01:26]}  Rc8 {[%clk 0:00:31]} 35. Bd4 {[%clk 0:01:24]}  Bxd4 {[%clk 0:00:28]} 36. Rxd4 {[%clk 0:01:23]}  Rxb2 {[%clk 0:00:27]} 37. Raxc4 {[%clk 0:01:24]}  Rxc4 {[%clk 0:00:27]} 38. Rxc4 {[%clk 0:01:25]}  Rc2 {[%clk 0:00:26]} 39. f5 {[%clk 0:01:24]}  h5 {[%clk 0:00:22]} 40. Rc7 {[%clk 0:01:20]}  f6 {[%clk 0:00:21]} 41. Kg3 {[%clk 0:01:17]}  Kh6 {[%clk 0:00:19]} 42. h4 {[%clk 0:01:17]}  Kh7 {[%clk 0:00:18]} 43. f3 {[%clk 0:01:15]}  Rd2 {[%clk 0:00:17]} 44. c4 {[%clk 0:01:15]}  Rd4 {[%clk 0:00:16]} 45. c5 {[%clk 0:01:14]}  Rd5 {[%clk 0:00:16]} 46. Kf4 {[%clk 0:01:14]}  Rd4+ {[%clk 0:00:16]} 47. Kg3 {[%clk 0:01:14]}  Rc4 {[%clk 0:00:16]} 48. c6 {[%clk 0:01:14]}  Rc5 {[%clk 0:00:16]} 49. Rc8 {[%clk 0:01:14]}  Rxf5 {[%clk 0:00:15]} 50. c7 {[%clk 0:01:14]}  Rc5 {[%clk 0:00:15]} 51. Kf4 {[%clk 0:01:15]}  Rc3 {[%clk 0:00:15]} 52. Ke4 {[%clk 0:01:15]}  Rc4+ {[%clk 0:00:15]} 53. Kd5 {[%clk 0:01:14]}  Rc2 {[%clk 0:00:15]} 54. Kd6 {[%clk 0:01:14]}  Rd2+ {[%clk 0:00:15]} 55. Ke6 {[%clk 0:01:14]}  Rc2 {[%clk 0:00:15]} 56. f4 {[%clk 0:01:11]}  Rc1 {[%clk 0:00:15]} 57. Kd7 {[%clk 0:00:54]}  Rd1+ {[%clk 0:00:15]} 58. Ke6 {[%clk 0:00:54]}  Rc1 {[%clk 0:00:15]} 59. f5 {[%clk 0:00:54]}  Re1+ {[%clk 0:00:15]} 60. Kf7 {[%clk 0:00:53]}  Rc1 {[%clk 0:00:14]} 61. Ke7 {[%clk 0:00:53]}  Re1+ {[%clk 0:00:14]} 62. Kf8 {[%clk 0:00:52]}  Rc1 {[%clk 0:00:14]} 63. Kf7 {[%clk 0:00:52]}  Rc2 {[%clk 0:00:14]} 64. Ke7 {[%clk 0:00:52]}  Re2+ {[%clk 0:00:14]} 65. Kd6 {[%clk 0:00:52]}  Rd2+ {[%clk 0:00:14]} 66. Kc6 {[%clk 0:00:53]}  Rc2+ {[%clk 0:00:15]} 67. Kd7 {[%clk 0:00:53]}  Rd2+ {[%clk 0:00:15]} 68. Ke7 {[%clk 0:00:47]}  Re2+ {[%clk 0:00:14]} 69. Kd7 {[%clk 0:00:46]}  Rd2+ {[%clk 0:00:15]} 70. Ke7 {[%clk 0:00:47]}  Re2+ {[%clk 0:00:15]} 1/2-1/2


[Site "https://www.chess.com"]

[Event "Titled Tuesday Blitz September 21 2021"]
[White "Dronavalli, Harika"]
[Black "Suvorov, Luca"]
[WhiteFideId "5015197"]
[BlackFideId "12977071"]
[WhiteElo "2422"]
[BlackElo "2127"]
[Result "1-0"]
[Round "04"]
[TimeControl "180+1"]
[Date "2021.09.21"]
[WhiteClock "0:00:55"]
[BlackClock "0:00:06"]

1. Nf3 {[%clk 0:03:00]}  d5 {[%clk 0:02:58]} 2. c4 {[%clk 0:03:01]}  d4 {[%clk 0:02:58]} 3. g3 {[%clk 0:03:00]}  c5 {[%clk 0:02:58]} 4. Bg2 {[%clk 0:03:00]}  Nc6 {[%clk 0:02:59]} 5. O-O {[%clk 0:03:01]}  e5 {[%clk 0:02:58]} 6. d3 {[%clk 0:03:01]}  Nf6 {[%clk 0:02:45]} 7. b4 {[%clk 0:03:00]}  cxb4 {[%clk 0:02:43]} 8. a3 {[%clk 0:03:00]}  bxa3 {[%clk 0:02:43]} 9. Bxa3 {[%clk 0:03:00]}  Bxa3 {[%clk 0:02:43]} 10. Nxa3 {[%clk 0:03:01]}  O-O {[%clk 0:02:44]} 11. Qa4 {[%clk 0:02:57]}  Qe7 {[%clk 0:02:40]} 12. Rfb1 {[%clk 0:02:55]}  a5 {[%clk 0:02:36]} 13. Nc2 {[%clk 0:02:50]}  Nd7 {[%clk 0:02:34]} 14. Rb5 {[%clk 0:02:38]}  Ra6 {[%clk 0:02:15]} 15. e3 {[%clk 0:02:36]}  dxe3 {[%clk 0:02:13]} 16. Nxe3 {[%clk 0:02:36]}  Nc5 {[%clk 0:02:13]} 17. Qa3 {[%clk 0:02:32]}  Nb4 {[%clk 0:02:13]} 18. Nd5 {[%clk 0:02:26]}  Nxd5 {[%clk 0:02:07]} 19. Qxc5 {[%clk 0:02:21]}  Qxc5 {[%clk 0:02:00]} 20. Rxc5 {[%clk 0:02:21]}  Nb4 {[%clk 0:01:59]} 21. Nxe5 {[%clk 0:02:21]}  b6 {[%clk 0:01:57]} 22. Rc7 {[%clk 0:02:11]}  Bf5 {[%clk 0:01:55]} 23. d4 {[%clk 0:02:03]}  Nc2 {[%clk 0:01:54]} 24. Rd1 {[%clk 0:02:02]}  a4 {[%clk 0:01:55]} 25. Bd5 {[%clk 0:01:52]}  Be6 {[%clk 0:01:24]} 26. Bb7 {[%clk 0:01:19]}  Ra5 {[%clk 0:01:03]} 27. Nc6 {[%clk 0:01:19]}  a3 {[%clk 0:01:03]} 28. Nxa5 {[%clk 0:01:19]}  bxa5 {[%clk 0:01:03]} 29. Be4 {[%clk 0:01:18]}  Nb4 {[%clk 0:00:50]} 30. d5 {[%clk 0:01:14]}  Bg4 {[%clk 0:00:47]} 31. f3 {[%clk 0:01:14]}  f5 {[%clk 0:00:48]} 32. fxg4 {[%clk 0:01:10]}  fxe4 {[%clk 0:00:48]} 33. d6 {[%clk 0:01:11]}  Rd8 {[%clk 0:00:18]} 34. Re7 {[%clk 0:01:07]}  a2 {[%clk 0:00:17]} 35. c5 {[%clk 0:01:03]}  Nc2 {[%clk 0:00:08]} 36. Rxe4 {[%clk 0:01:03]}  a1=Q {[%clk 0:00:08]} 37. Rxa1 {[%clk 0:01:02]}  Nxa1 {[%clk 0:00:09]} 38. c6 {[%clk 0:00:58]}  Rxd6 {[%clk 0:00:07]} 39. c7 {[%clk 0:00:58]}  Rc6 {[%clk 0:00:07]} 40. Re8+ {[%clk 0:00:58]}  Kf7 {[%clk 0:00:08]} 41. c8=Q {[%clk 0:00:58]}  Rxc8 {[%clk 0:00:09]} 42. Rxc8 {[%clk 0:00:58]}  Nb3 {[%clk 0:00:07]} 43. Ra8 {[%clk 0:00:58]}  Ke6 {[%clk 0:00:07]} 44. Ra7 {[%clk 0:00:57]}  Kd5 {[%clk 0:00:03]} 45. Rxg7 {[%clk 0:00:57]}  Kc4 {[%clk 0:00:04]} 46. Rxh7 {[%clk 0:00:57]}  Kb4 {[%clk 0:00:04]} 47. Rb7+ {[%clk 0:00:56]}  Kc3 {[%clk 0:00:02]} 48. Ra7 {[%clk 0:00:55]}  Kb4 {[%clk 0:00:02]} 49. g5 {[%clk 0:00:55]}  a4 {[%clk 0:00:03]} 50. g6 {[%clk 0:00:55]}  Na5 {[%clk 0:00:04]} 51. g7 {[%clk 0:00:55]}  a3 {[%clk 0:00:05]} 52. g8=Q {[%clk 0:00:55]}  a2 {[%clk 0:00:06]} 53. Qxa2 {[%clk 0:00:55]} 1-0


[Site "https://www.chess.com"]